fUSD/lending_fUSD_20260611
["ID","MTS","AMOUNT","RATE_DAILY","PERIOD"]
[424803165,1781173844000,-500.0,0.00013698,2]
[424803054,1781173844000,-660.37,0.00013698,2]
[424803095,1781173844000,-500.0,0.00013698,2]
[424803093,1781173844000,-500.0,0.00013698,2]
[424803111,1781173844000,-500.0,0.00013698,2]
[424803115,1781173844000,-500.0,0.00013698,2]
[424803118,1781173844000,-415.12475003,0.00013698,2]
[424803120,1781173844000,-502.88764057,0.00013698,2]
[424803129,1781173844000,-500.0,0.00013698,2]
[424803113,1781173844000,-500.0,0.00013698,2]
[424803098,1781173844000,-500.0,0.00013698,2]
[424803122,1781173844000,-500.0,0.00013698,2]
[424803131,1781173844000,-500.0,0.00013698,2]
[424803125,1781173844000,-500.0,0.00013698,2]
[424803159,1781173844000,-500.0,0.00013698,2]
[424803161,1781173844000,-500.0,0.00013698,2]
[424803163,1781173844000,-500.0,0.00013698,2]
[424803167,1781173844000,-500.0,0.00013698,2]
[424803169,1781173844000,-500.0,0.00013698,2]
[424803047,1781173844000,-660.37,0.00013698,2]
[424803127,1781173844000,-500.0,0.00013698,2]
[424803109,1781173844000,-500.0,0.00013698,2]
[424803133,1781173844000,-500.0,0.00013698,2]
[424803106,1781173844000,-500.0,0.00013698,2]
[424803091,1781173844000,-500.0,0.00013698,2]
[424803061,1781173844000,-660.37,0.00013698,2]
[424803059,1781173844000,-660.37,0.00013698,2]
[424803057,1781173844000,-660.37,0.00013698,2]
[424803063,1781173844000,-660.37,0.00013698,2]
[424803068,1781173844000,-660.37,0.00013698,2]
[424803072,1781173844000,-660.37,0.00013698,2]
[424803070,1781173844000,-660.37,0.00013698,2]
[424803074,1781173844000,-660.37,0.00013698,2]
[424803080,1781173844000,-660.37,0.00013698,2]
[424803065,1781173844000,-660.37,0.00013698,2]
[424803076,1781173844000,-660.37,0.00013698,2]
[424803100,1781173844000,-500.0,0.00013698,2]
[424803102,1781173844000,-500.0,0.00013698,2]
[424803089,1781173844000,-500.0,0.00013698,2]
[424803087,1781173844000,-500.0,0.00013698,2]
[424803104,1781173844000,-500.0,0.00013698,2]
[424803078,1781173844000,-660.37,0.00013698,2]
[424803082,1781173844000,-660.37338711,0.00013698,2]
[424803085,1781173844000,-500.0,0.00013698,2]
[424803212,1781173845000,-500.0,0.00013698,2]
[424803208,1781173845000,-500.0,0.00013698,2]
[424803205,1781173845000,-500.0,0.00013698,2]
[424803209,1781173845000,-500.0,0.00013698,2]
[424803211,1781173845000,-500.0,0.00013698,2]
[424803207,1781173845000,-500.0,0.00013698,2]
[424803210,1781173845000,-500.0,0.00013698,2]
[424803206,1781173845000,-500.0,0.00013698,2]
[424803213,1781173845000,-500.0,0.00013698,2]
[424803214,1781173845000,-500.0,0.00013698,2]
[424803226,1781173845000,-500.0,0.00013698,2]
[424803216,1781173845000,-500.0,0.00013698,2]
[424803215,1781173845000,-500.0,0.00013698,2]
[424803219,1781173845000,-500.0,0.00013698,2]
[424803221,1781173845000,-500.0,0.00013698,2]
[424803220,1781173845000,-500.0,0.00013698,2]
[424803218,1781173845000,-500.0,0.00013698,2]
[424803222,1781173845000,-500.0,0.00013698,2]
[424803228,1781173845000,-500.0,0.00013698,2]
[424803224,1781173845000,-500.0,0.00013698,2]
[424803202,1781173845000,-500.0,0.00013698,2]
[424803217,1781173845000,-500.0,0.00013698,2]
[424803203,1781173845000,-500.0,0.00013698,2]
[424803178,1781173845000,-500.0,0.00013698,2]
[424803201,1781173845000,-500.0,0.00013698,2]
[424803174,1781173845000,-500.0,0.00013698,2]
[424803176,1781173845000,-500.0,0.00013698,2]
[424803223,1781173845000,-500.0,0.00013698,2]
[424803180,1781173845000,-500.0,0.00013698,2]
[424803182,1781173845000,-500.0,0.00013698,2]
[424803185,1781173845000,-500.0,0.00013698,2]
[424803187,1781173845000,-557.54165227,0.00013698,2]
[424803190,1781173845000,-500.0,0.00013698,2]
[424803192,1781173845000,-500.0,0.00013698,2]
[424803186,1781173845000,-500.0,0.00013698,2]
[424803191,1781173845000,-500.0,0.00013698,2]
[424803188,1781173845000,-500.0,0.00013698,2]
[424803189,1781173845000,-500.0,0.00013698,2]
[424803194,1781173845000,-500.0,0.00013698,2]
[424803193,1781173845000,-500.0,0.00013698,2]
[424803195,1781173845000,-500.0,0.00013698,2]
[424803196,1781173845000,-500.0,0.00013698,2]
[424803197,1781173845000,-500.0,0.00013698,2]
[424803198,1781173845000,-500.0,0.00013698,2]
[424803200,1781173845000,-500.0,0.00013698,2]
[424803199,1781173845000,-500.0,0.00013698,2]
[424803204,1781173845000,-500.0,0.00013698,2]
[424803225,1781173845000,-500.0,0.00013698,2]
[424803172,1781173845000,-500.0,0.00013698,2]
[424803231,1781173845000,-500.0,0.00013698,2]
[424803254,1781173845000,-171.51496798,0.00013698,2]
[424803258,1781173845000,-500.0,0.00013698,2]
[424803259,1781173845000,-500.0,0.00013698,2]
[424803257,1781173845000,-500.0,0.00013698,2]
[424803260,1781173845000,-500.0,0.00013698,2]
[424803261,1781173845000,-500.0,0.00013698,2]
[424803262,1781173845000,-500.0,0.00013698,2]
[424803265,1781173845000,-500.0,0.00013698,2]
[424803270,1781173845000,-500.0,0.00013698,2]
[424803263,1781173845000,-500.0,0.00013698,2]
[424803255,1781173845000,-500.0,0.00013698,2]
[424803268,1781173845000,-500.0,0.00013698,2]
[424803266,1781173845000,-500.0,0.00013698,2]
[424803267,1781173845000,-500.0,0.00013698,2]
[424803264,1781173845000,-500.0,0.00013698,2]
[424803271,1781173845000,-500.0,0.00013698,2]
[424803272,1781173845000,-500.0,0.00013698,2]
[424803275,1781173845000,-500.0,0.00013698,2]
[424803273,1781173845000,-500.0,0.00013698,2]
[424803276,1781173845000,-462.54456704,0.00013698,2]
[424803274,1781173845000,-500.0,0.00013698,2]
[424803227,1781173845000,-500.0,0.00013698,2]
[424803269,1781173845000,-500.0,0.00013698,2]
[424803253,1781173845000,-500.0,0.00013698,2]
[424803277,1781173845000,-200.0,0.00013699,2]
[424803247,1781173845000,-500.0,0.00013698,2]
[424803256,1781173845000,-500.0,0.00013698,2]
[424803229,1781173845000,-500.0,0.00013698,2]
[424803233,1781173845000,-500.0,0.00013698,2]
[424803242,1781173845000,-500.0,0.00013698,2]
[424803232,1781173845000,-500.0,0.00013698,2]
[424803234,1781173845000,-500.0,0.00013698,2]
[424803235,1781173845000,-500.0,0.00013698,2]
[424803240,1781173845000,-500.0,0.00013698,2]
[424803237,1781173845000,-500.0,0.00013698,2]
[424803236,1781173845000,-500.0,0.00013698,2]
[424803238,1781173845000,-500.0,0.00013698,2]
[424803230,1781173845000,-500.0,0.00013698,2]
[424803239,1781173845000,-500.0,0.00013698,2]
[424803246,1781173845000,-500.0,0.00013698,2]
[424803243,1781173845000,-500.0,0.00013698,2]
[424803245,1781173845000,-500.0,0.00013698,2]
[424803244,1781173845000,-500.0,0.00013698,2]
[424803248,1781173845000,-500.0,0.00013698,2]
[424803250,1781173845000,-500.0,0.00013698,2]
[424803251,1781173845000,-500.0,0.00013698,2]
[424803252,1781173845000,-500.0,0.00013698,2]
[424803249,1781173845000,-500.0,0.00013698,2]
[424803241,1781173845000,-500.0,0.00013698,2]
[424803307,1781173846000,-500.0,0.00013699,2]
[424803306,1781173846000,-500.0,0.00013699,2]
[424803305,1781173846000,-500.0,0.00013699,2]
[424803302,1781173846000,-500.0,0.00013699,2]
[424803311,1781173846000,-500.0,0.00013699,2]
[424803304,1781173846000,-500.0,0.00013699,2]
[424803309,1781173846000,-500.0,0.00013699,2]
[424803308,1781173846000,-500.0,0.00013699,2]
[424803310,1781173846000,-500.0,0.00013699,2]
[424803316,1781173846000,-500.0,0.00013699,2]
[424803313,1781173846000,-500.0,0.00013699,2]
[424803314,1781173846000,-500.0,0.00013699,2]
[424803318,1781173846000,-572.39742768,0.00013699,2]
[424803315,1781173846000,-500.0,0.00013699,2]
[424803319,1781173846000,-500.0,0.00013699,2]
[424803320,1781173846000,-500.0,0.00013699,2]
[424803317,1781173846000,-500.0,0.00013699,2]
[424803321,1781173846000,-500.0,0.00013699,2]
[424803330,1781173846000,-500.0,0.00013699,2]
[424803303,1781173846000,-500.0,0.00013699,2]
[424803312,1781173846000,-500.0,0.00013699,2]
[424803300,1781173846000,-500.0,0.00013699,2]
[424803290,1781173846000,-500.0,0.00013699,2]
[424803299,1781173846000,-500.0,0.00013699,2]
[424803326,1781173846000,-500.0,0.00013699,2]
[424803278,1781173846000,-2500.0,0.00013699,2]
[424803279,1781173846000,-222.15,0.00013699,2]
[424803282,1781173846000,-771.36,0.00013699,2]
[424803281,1781173846000,-154.27,0.00013699,2]
[424803280,1781173846000,-185.12,0.00013699,2]
[424803284,1781173846000,-2000.0,0.00013699,7]
[424803283,1781173846000,-188.14874168,0.00013699,10]
[424803285,1781173846000,-22281.86,0.00013699,2]
[424803287,1781173846000,-500.0,0.00013699,2]
[424803288,1781173846000,-500.0,0.00013699,2]
[424803286,1781173846000,-500.0,0.00013699,2]
[424803289,1781173846000,-500.0,0.00013699,2]
[424803292,1781173846000,-500.0,0.00013699,2]
[424803291,1781173846000,-500.0,0.00013699,2]
[424803293,1781173846000,-500.0,0.00013699,2]
[424803294,1781173846000,-500.0,0.00013699,2]
[424803296,1781173846000,-500.0,0.00013699,2]
[424803295,1781173846000,-500.0,0.00013699,2]
[424803297,1781173846000,-500.0,0.00013699,2]
[424803298,1781173846000,-500.0,0.00013699,2]
[424803301,1781173846000,-500.0,0.00013699,2]
[424803322,1781173846000,-500.0,0.00013699,2]
[424803325,1781173846000,-500.0,0.00013699,2]
[424803323,1781173846000,-500.0,0.00013699,2]
[424803358,1781173846000,-2098.88487928,0.00013699,2]
[424803360,1781173846000,-2098.88487928,0.00013699,2]
[424803361,1781173846000,-2098.88487928,0.00013699,2]
[424803362,1781173846000,-2098.88487928,0.00013699,2]
[424803365,1781173846000,-2098.88487928,0.00013699,2]
[424803366,1781173846000,-2098.88487928,0.00013699,2]
[424803367,1781173846000,-2098.88487928,0.00013699,2]
[424803369,1781173846000,-2098.88487928,0.00013699,2]
[424803371,1781173846000,-2098.88487928,0.00013699,2]
[424803359,1781173846000,-2098.88487928,0.00013699,2]
[424803370,1781173846000,-2098.88487928,0.00013699,2]
[424803372,1781173846000,-2098.88487928,0.00013699,2]
[424803375,1781173846000,-2098.88487928,0.00013699,2]
[424803373,1781173846000,-2098.88487928,0.00013699,2]
[424803374,1781173846000,-2098.88487928,0.00013699,2]
[424803377,1781173846000,-2098.88487928,0.00013699,2]
[424803376,1781173846000,-2098.88487928,0.00013699,2]
[424803378,1781173846000,-2098.88487928,0.00013699,2]
[424803380,1781173846000,-2098.88487928,0.00013699,2]
[424803329,1781173846000,-500.0,0.00013699,2]
[424803368,1781173846000,-2098.88487928,0.00013699,2]
[424803364,1781173846000,-2098.88487928,0.00013699,2]
[424803379,1781173846000,-2098.88487928,0.00013699,2]
[424803356,1781173846000,-2098.88487928,0.00013699,2]
[424803363,1781173846000,-2098.88487928,0.00013699,2]
[424803327,1781173846000,-500.0,0.00013699,2]
[424803328,1781173846000,-500.0,0.00013699,2]
[424803331,1781173846000,-500.0,0.00013699,2]
[424803334,1781173846000,-2098.88487928,0.00013699,2]
[424803333,1781173846000,-500.0,0.00013699,2]
[424803332,1781173846000,-500.0,0.00013699,2]
[424803336,1781173846000,-2098.88487928,0.00013699,2]
[424803338,1781173846000,-2098.88487928,0.00013699,2]
[424803337,1781173846000,-2098.88487928,0.00013699,2]
[424803324,1781173846000,-500.0,0.00013699,2]
[424803339,1781173846000,-2098.88487928,0.00013699,2]
[424803342,1781173846000,-2098.88487928,0.00013699,2]
[424803348,1781173846000,-2098.88487928,0.00013699,2]
[424803344,1781173846000,-2098.88487928,0.00013699,2]
[424803346,1781173846000,-2098.88487928,0.00013699,2]
[424803350,1781173846000,-2098.88487928,0.00013699,2]
[424803355,1781173846000,-2098.88487928,0.00013699,2]
[424803354,1781173846000,-2098.88487928,0.00013699,2]
[424803352,1781173846000,-2098.88487928,0.00013699,2]
[424803357,1781173846000,-2098.88487928,0.00013699,2]
[424803335,1781173846000,-2098.88487928,0.00013699,2]
[424803410,1781173847000,-1400.0,0.000148,5]
[424803409,1781173847000,-25000.0,0.00014794,3]
[424803412,1781173847000,-25000.0,0.00014812,3]
[424803405,1781173847000,-185.740909,0.000147,2]
[424803406,1781173847000,-190.067861,0.000147,2]
[424803407,1781173847000,-1555.5,0.00014703,2]
[424803408,1781173847000,-168.90688265,0.00014721,2]
[424803411,1781173847000,-25000.0,0.00014803,3]
[424803414,1781173847000,-122025.0824043,0.00014829,2]
[424803418,1781173847000,-8735.4546761,0.00014829,2]
[424803413,1781173847000,-25000.0,0.00014821,3]
[424803425,1781173847000,-151.0,0.00014829,2]
[424803415,1781173847000,-105136.7551997,0.00014829,2]
[424803419,1781173847000,-5189.3400363,0.00014829,2]
[424803420,1781173847000,-1709.873556,0.00014829,2]
[424803422,1781173847000,-1709.873556,0.00014829,2]
[424803421,1781173847000,-1709.873556,0.00014829,2]
[424803428,1781173847000,-25000.0,0.00014847,3]
[424803403,1781173847000,-500.0,0.00014421,2]
[424803417,1781173847000,-299.9900002,0.00014829,2]
[424803404,1781173847000,-500.0,0.00014421,2]
[424803392,1781173847000,-250.0,0.00014,2]
[424803397,1781173847000,-1500.0,0.00014155,2]
[424803381,1781173847000,-2098.88487928,0.00013699,2]
[424803382,1781173847000,-2098.88487928,0.00013699,2]
[424803383,1781173847000,-150.0,0.000137,2]
[424803384,1781173847000,-150.0,0.000137,2]
[424803386,1781173847000,-150.0,0.000137,2]
[424803391,1781173847000,-26574.84911613,0.0001399,2]
[424803390,1781173847000,-966.49,0.00013936,2]
[424803385,1781173847000,-150.0,0.000137,2]
[424803388,1781173847000,-540.46,0.000137,2]
[424803387,1781173847000,-278.60891467,0.000137,2]
[424803393,1781173847000,-150.0,0.00014,2]
[424803389,1781173847000,-500.0,0.0001383,2]
[424803395,1781173847000,-2129.0,0.00014079,2]
[424803394,1781173847000,-648.01611444,0.0001405,2]
[424803396,1781173847000,-382.20684161,0.00014104,2]
[424803399,1781173847000,-1822.147944,0.00014284,2]
[424803401,1781173847000,-162.2,0.00014309,2]
[424803402,1781173847000,-500.0,0.00014421,2]
[424803398,1781173847000,-232.168188,0.00014284,2]
[424803400,1781173847000,-2054.316131,0.00014284,2]
[424803423,1781173847000,-1709.873556,0.00014829,2]
[424803416,1781173847000,-494595.6512626,0.00014829,2]
[424803424,1781173847000,-151.0,0.00014829,2]
[424803451,1781173847000,-356.57179864,0.0001499,2]
[424803455,1781173847000,-300.0,0.00014999,2]
[424803450,1781173847000,-1600.0,0.00014931,2]
[424803454,1781173847000,-300.0,0.00014999,2]
[424803457,1781173847000,-300.0,0.00014999,2]
[424803453,1781173847000,-151.0,0.00014997,2]
[424803459,1781173847000,-300.0,0.00014999,2]
[424803458,1781173847000,-300.0,0.00014999,2]
[424803467,1781173847000,-10597.3864776,0.00015,2]
[424803456,1781173847000,-666.0,0.00014999,2]
[424803464,1781173847000,-666.0,0.00014999,2]
[424803462,1781173847000,-300.0,0.00014999,2]
[424803463,1781173847000,-300.0,0.00014999,2]
[424803465,1781173847000,-300.0,0.00014999,2]
[424803466,1781173847000,-5692063.99919962,0.00015,2]
[424803468,1781173847000,-400.0,0.00015,2]
[424803471,1781173847000,-2609.54,0.00015,2]
[424803470,1781173847000,-3000.0,0.00015,2]
[424803469,1781173847000,-3000.0,0.00015,2]
[424803426,1781173847000,-25000.0,0.0001483,3]
[424803461,1781173847000,-300.0,0.00014999,2]
[424803452,1781173847000,-151.0,0.00014997,2]
[424803460,1781173847000,-666.0,0.00014999,2]
[424803442,1781173847000,-14373.45969046,0.000149,3]
[424803449,1781173847000,-2000.0,0.00014931,2]
[424803427,1781173847000,-25000.0,0.00014838,3]
[424803431,1781173847000,-25000.0,0.00014874,3]
[424803430,1781173847000,-25000.0,0.00014865,3]
[424803432,1781173847000,-25000.0,0.00014882,3]
[424803436,1781173847000,-500.0,0.00014899,2]
[424803435,1781173847000,-5800.0,0.00014891,2]
[424803434,1781173847000,-25000.0,0.00014891,3]
[424803433,1781173847000,-5800.0,0.00014883,2]
[424803437,1781173847000,-549.51495302,0.00014899,2]
[424803429,1781173847000,-25000.0,0.00014856,3]
[424803440,1781173847000,-500.0,0.00014899,2]
[424803438,1781173847000,-500.0,0.00014899,2]
[424803445,1781173847000,-1400.0,0.000149,5]
[424803443,1781173847000,-10000.0,0.000149,2]
[424803439,1781173847000,-500.0,0.00014899,2]
[424803444,1781173847000,-25000.0,0.000149,3]
[424803447,1781173847000,-5800.0,0.000149,2]
[424803446,1781173847000,-2000.0,0.000149,2]
[424803448,1781173847000,-162.2,0.00014931,2]
[424803441,1781173847000,-500.0,0.00014899,2]
[424803504,1781173848000,-666.0,0.0001501,2]
[424803498,1781173848000,-151.0,0.00015,2]
[424803499,1781173848000,-300.0,0.00015008,2]
[424803501,1781173848000,-666.0,0.00015009,2]
[424803507,1781173848000,-300.0,0.0001501,2]
[424803503,1781173848000,-300.0,0.0001501,2]
[424803495,1781173848000,-1709.873556,0.00015,2]
[424803500,1781173848000,-300.0,0.00015009,2]
[424803502,1781173848000,-300.0,0.00015009,2]
[424803505,1781173848000,-300.0,0.0001501,2]
[424803510,1781173848000,-687.07472415,0.0001501,2]
[424803509,1781173848000,-300.0,0.0001501,2]
[424803511,1781173848000,-2000.0,0.00015011,2]
[424803512,1781173848000,-2000.0,0.00015011,2]
[424803508,1781173848000,-666.0,0.0001501,2]
[424803516,1781173848000,-2000.0,0.00015011,2]
[424803517,1781173848000,-1391.78,0.00015011,2]
[424803513,1781173848000,-2000.0,0.00015011,2]
[424803515,1781173848000,-2000.0,0.00015011,2]
[424803496,1781173848000,-1709.873556,0.00015,2]
[424803506,1781173848000,-300.0,0.0001501,2]
[424803497,1781173848000,-151.0,0.00015,2]
[424803474,1781173848000,-2152.38,0.00015,2]
[424803492,1781173848000,-177.357647,0.00015,2]
[424803519,1781173848000,-2000.0,0.00015011,2]
[424803472,1781173848000,-3000.0,0.00015,2]
[424803478,1781173848000,-151.0,0.00015,2]
[424803473,1781173848000,-587.3,0.00015,2]
[424803476,1781173848000,-200.0,0.00015,2]
[424803477,1781173848000,-151.0,0.00015,2]
[424803475,1781173848000,-200.0,0.00015,2]
[424803480,1781173848000,-151.0,0.00015,2]
[424803479,1781173848000,-214.02370059,0.00015,2]
[424803482,1781173848000,-164.33069,0.00015,2]
[424803481,1781173848000,-164.33069,0.00015,2]
[424803483,1781173848000,-164.33069,0.00015,2]
[424803484,1781173848000,-164.33069,0.00015,2]
[424803485,1781173848000,-200.0,0.00015,2]
[424803488,1781173848000,-150.0,0.00015,2]
[424803487,1781173848000,-151.0,0.00015,2]
[424803489,1781173848000,-177.357647,0.00015,2]
[424803486,1781173848000,-151.0,0.00015,2]
[424803490,1781173848000,-177.357647,0.00015,2]
[424803491,1781173848000,-177.357647,0.00015,2]
[424803493,1781173848000,-1709.873556,0.00015,2]
[424803494,1781173848000,-1709.873556,0.00015,2]
[424803521,1781173848000,-2000.0,0.00015011,2]
[424803514,1781173848000,-2000.0,0.00015011,2]
[424803518,1781173848000,-2000.0,0.00015011,2]
[424803547,1781173848000,-400.0,0.000152,2]
[424803549,1781173848000,-1613.0535,0.00015251,2]
[424803554,1781173848000,-400.0,0.000153,2]
[424803552,1781173848000,-234.480463,0.00015288,2]
[424803555,1781173848000,-200.0,0.00015301,2]
[424803548,1781173848000,-540.46,0.000152,2]
[424803553,1781173848000,-10597.3864776,0.000153,2]
[424803551,1781173848000,-197.240231,0.00015288,2]
[424803550,1781173848000,-160.0,0.00015288,2]
[424803556,1781173848000,-200.0,0.00015301,2]
[424803542,1781173848000,-200.0,0.0001515,2]
[424803560,1781173848000,-225.499998,0.00015364,2]
[424803559,1781173848000,-192.749999,0.00015364,2]
[424803563,1781173848000,-200.0,0.00015455,2]
[424803562,1781173848000,-200.0,0.00015455,2]
[424803566,1781173848000,-10597.3864776,0.000155,2]
[424803561,1781173848000,-200.0,0.00015455,2]
[424803565,1781173848000,-166.66,0.00015492,2]
[424803564,1781173848000,-3620.0,0.00015486,2]
[424803567,1781173848000,-400.0,0.000155,2]
[424803526,1781173848000,-2000.0,0.00015011,2]
[424803568,1781173848000,-10597.3864776,0.000156,2]
[424803558,1781173848000,-160.0,0.00015364,2]
[424803544,1781173848000,-200.0,0.0001515,2]
[424803557,1781173848000,-200.0,0.00015301,2]
[424803543,1781173848000,-200.0,0.0001515,2]
[424803520,1781173848000,-1579.91,0.00015011,2]
[424803525,1781173848000,-2000.0,0.00015011,2]
[424803545,1781173848000,-150.0,0.000152,2]
[424803522,1781173848000,-1347.94,0.00015011,2]
[424803527,1781173848000,-2000.0,0.00015011,2]
[424803523,1781173848000,-2000.0,0.00015011,2]
[424803524,1781173848000,-2000.0,0.00015011,2]
[424803530,1781173848000,-346.44,0.00015011,2]
[424803528,1781173848000,-2000.0,0.00015011,2]
[424803531,1781173848000,-2000.0,0.00015011,2]
[424803532,1781173848000,-2000.0,0.00015011,2]
[424803529,1781173848000,-2000.0,0.00015011,2]
[424803540,1781173848000,-165.327924,0.00015144,2]
[424803534,1781173848000,-2000.0,0.00015011,2]
[424803535,1781173848000,-1586.61,0.00015011,2]
[424803536,1781173848000,-350.0,0.00015014,3]
[424803538,1781173848000,-151.0,0.00015068,2]
[424803546,1781173848000,-10597.3864776,0.000152,2]
[424803537,1781173848000,-151.0,0.00015068,2]
[424803539,1781173848000,-160.0,0.00015144,2]
[424803533,1781173848000,-1977.68,0.00015011,2]
[424803541,1781173848000,-170.655849,0.00015144,2]
[424803603,1781173849000,-2181.26158179,0.00016075,2]
[424803606,1781173849000,-2181.26158179,0.00016097,2]
[424803602,1781173849000,-2181.26158179,0.00016074,2]
[424803600,1781173849000,-2181.26158179,0.00016056,2]
[424803594,1781173849000,-191.99780672,0.00016,2]
[424803598,1781173849000,-2181.26158179,0.00016035,2]
[424803599,1781173849000,-2181.26158179,0.00016051,2]
[424803597,1781173849000,-2181.26158179,0.00016031,2]
[424803605,1781173849000,-2181.26158179,0.00016092,2]
[424803601,1781173849000,-2181.26158179,0.00016057,2]
[424803604,1781173849000,-2181.26158179,0.00016075,2]
[424803616,1781173849000,-191.0,0.00016438,2]
[424803609,1781173849000,-2181.26158179,0.00016119,2]
[424803611,1781173849000,-2181.26158179,0.00016125,2]
[424803610,1781173849000,-2181.26158179,0.00016125,2]
[424803607,1781173849000,-10597.3864776,0.000161,2]
[424803613,1781173849000,-10597.3864776,0.000162,2]
[424803614,1781173849000,-1734.62772924,0.00016347,2]
[424803615,1781173849000,-10597.3864776,0.000164,2]
[424803612,1781173849000,-2181.26158179,0.00016126,2]
[424803618,1781173849000,-1672.4,0.00016438,2]
[424803617,1781173849000,-371.0,0.00016438,2]
[424803591,1781173849000,-215.95576085,0.00016,3]
[424803608,1781173849000,-7717.02363909,0.0001611,15]
[424803593,1781173849000,-150.0,0.00016,2]
[424803574,1781173849000,-10597.3864776,0.000158,2]
[424803596,1781173849000,-2181.26158179,0.00016013,2]
[424803623,1781173849000,-426.747296,0.00016438,2]
[424803570,1781173849000,-200.0,0.00015609,2]
[424803569,1781173849000,-400.0,0.000156,2]
[424803572,1781173849000,-10000.0,0.00015758,2]
[424803571,1781173849000,-10000.0,0.00015632,2]
[424803573,1781173849000,-1672.7364795,0.00015799,2]
[424803575,1781173849000,-2181.26158179,0.00015817,2]
[424803576,1781173849000,-2181.26158179,0.0001582,2]
[424803577,1781173849000,-168.90688265,0.00015828,2]
[424803580,1781173849000,-2181.26158179,0.00015863,2]
[424803579,1781173849000,-2181.26158179,0.00015848,2]
[424803587,1781173849000,-2181.26158179,0.00015976,2]
[424803578,1781173849000,-2181.26158179,0.00015838,2]
[424803582,1781173849000,-2181.26158179,0.0001589,2]
[424803586,1781173849000,-2181.26158179,0.0001596,2]
[424803581,1781173849000,-2181.26158179,0.00015867,2]
[424803585,1781173849000,-2181.26158179,0.00015956,2]
[424803584,1781173849000,-10597.3864776,0.000159,2]
[424803583,1781173849000,-2181.26158179,0.00015892,2]
[424803589,1781173849000,-2181.26158179,0.00015995,2]
[424803588,1781173849000,-166.66,0.00015987,2]
[424803590,1781173849000,-300.0,0.00016,2]
[424803592,1781173849000,-150.0,0.00016,2]
[424803595,1781173849000,-2181.26158179,0.00016001,2]
[424803619,1781173849000,-359.97311207,0.00016438,2]
[424803664,1781173849000,-1672.4,0.0001841,2]
[424803622,1781173849000,-151.0,0.00016438,2]
[424803651,1781173849000,-166.66,0.00017473,2]
[424803660,1781173849000,-350.0,0.00018,2]
[424803653,1781173849000,-372.0,0.00017808,2]
[424803655,1781173849000,-172.21,0.00017877,2]
[424803659,1781173849000,-227.69822417,0.00018,2]
[424803656,1781173849000,-276.19010847,0.000179,2]
[424803654,1781173849000,-191.0,0.00017852,2]
[424803658,1781173849000,-7884.3262389,0.00018,2]
[424803657,1781173849000,-1934.38338736,0.00017991,2]
[424803661,1781173849000,-150.0,0.00018,2]
[424803663,1781173849000,-1125.0,0.00018139,2]
[424803662,1781173849000,-666.0,0.00018,2]
[424803665,1781173849000,-151.0,0.00018539,2]
[424803666,1781173849000,-200.0,0.00018539,2]
[424803669,1781173849000,-151.0,0.00018539,2]
[424803671,1781173849000,-151.0,0.00018539,2]
[424803670,1781173849000,-151.0,0.00018539,2]
[424803667,1781173849000,-151.0,0.00018539,2]
[424803668,1781173849000,-151.0,0.00018539,2]
[424803672,1781173849000,-2005.9555727,0.00018539,2]